fUST/lending_fUST_20241227
["ID","MTS","AMOUNT","RATE_DAILY","PERIOD"]
[346718565,1735237642223,-500.0,0.0001697,2]
[346718566,1735237642244,-542.29,0.0001697,2]
[346718567,1735237642265,-501.54249789,0.0001697,2]
[346718568,1735237642286,-645.43,0.0001697,2]
[346718569,1735237642307,-354.27671386,0.0001697,2]
[346718570,1735237642329,-500.0,0.0001697,2]
[346718571,1735237642350,-500.0,0.0001697,2]
[346718572,1735237642372,-500.0,0.0001697,2]
[346718573,1735237642393,-500.0,0.0001697,2]
[346718574,1735237642414,-500.0,0.0001697,2]
[346718575,1735237642436,-500.0,0.0001697,2]
[346718576,1735237642457,-500.0,0.0001697,2]
[346718577,1735237642478,-500.0,0.0001697,2]
[346718578,1735237642504,-5445.35679369,0.0001697,2]
[346718579,1735237646131,-107.84320631,0.0001697,2]
[346718580,1735237646153,-500.0,0.0001697,2]
[346718581,1735237646176,-500.0,0.0001697,2]
[346718582,1735237646198,-500.0,0.0001697,2]
[346718583,1735237646219,-500.0,0.0001697,2]
[346718584,1735237646244,-2250.84,0.0001697,2]
[346718585,1735237646267,-224.15874183,0.0001697,2]
[346718586,1735237654107,-275.96635095,0.000168,2]
[346718587,1735237745086,-4425.337,0.000168,2]
[346718609,1735237832357,-205.0018879,0.000168,2]
[346718610,1735237832367,-500.0,0.00016969,2]
[346718611,1735237832376,-500.0,0.00016969,2]
[346718612,1735237832386,-300.0,0.00016969,2]
[346718613,1735237832399,-300.0,0.00016969,2]
[346718614,1735237832408,-753.72,0.00016969,2]
[346718615,1735237832418,-500.0,0.00016969,2]
[346718616,1735237832428,-500.0,0.00016969,2]
[346718617,1735237832437,-294.72125817,0.0001697,2]
[346718618,1735237832446,-168.0,0.0001697,2]
[346718619,1735237832455,-500.0,0.0001697,2]
[346718620,1735237832466,-674.71,0.0001697,2]
[346718621,1735237832475,-500.0,0.0001697,2]
[346718622,1735237832486,-500.0,0.0001697,2]
[346718623,1735237832495,-500.0,0.0001697,2]
[346718624,1735237832505,-550.85,0.0001697,2]
[346718626,1735237832514,-500.0,0.0001697,2]
[346718627,1735237832523,-500.0,0.0001697,2]
[346718628,1735237832533,-500.0,0.0001697,2]
[346718629,1735237832542,-500.0,0.0001697,2]
[346718630,1735237832551,-500.0,0.0001697,2]
[346718631,1735237832563,-818.81,0.0001697,2]
[346718632,1735237832573,-500.0,0.0001697,2]
[346718633,1735237832583,-500.0,0.0001697,2]
[346718634,1735237832592,-500.0,0.0001697,2]
[346718635,1735237832602,-1048.06,0.0001697,2]
[346718636,1735237832612,-500.0,0.0001697,2]
[346718637,1735237832621,-940.19,0.0001697,2]
[346718638,1735237832631,-500.0,0.0001697,2]
[346718639,1735237832641,-500.0,0.0001697,2]
[346718640,1735237832650,-500.0,0.0001697,2]
[346718641,1735237832659,-619.33,0.0001697,2]
[346718642,1735237832668,-500.0,0.0001697,2]
[346718643,1735237832678,-500.0,0.0001697,2]
[346718644,1735237832687,-500.0,0.0001697,2]
[346718645,1735237832696,-500.0,0.0001697,2]
[346718646,1735237832706,-538.0,0.0001697,2]
[346718647,1735237832715,-500.0,0.0001697,2]
[346718648,1735237832724,-500.0,0.0001697,2]
[346718649,1735237832733,-500.0,0.0001697,2]
[346718650,1735237832742,-500.0,0.0001697,2]
[346718651,1735237832752,-571.03,0.0001697,2]
[346718652,1735237832761,-500.0,0.0001697,2]
[346718653,1735237832770,-500.0,0.0001697,2]
[346718654,1735237832779,-500.0,0.0001697,2]
[346718655,1735237832788,-641.24,0.0001697,2]
[346718656,1735237832798,-500.0,0.0001697,2]
[346718657,1735237832807,-500.0,0.0001697,2]
[346718658,1735237832817,-578.06,0.0001697,2]
[346718659,1735237832826,-500.0,0.0001697,2]
[346718660,1735237832835,-622.15,0.0001697,2]
[346718661,1735237832844,-500.0,0.00016971,2]
[346718662,1735237832854,-500.0,0.00016971,2]
[346718663,1735237832864,-500.0,0.00016971,2]
[346718664,1735237832873,-500.0,0.00016972,2]
[346718665,1735237832882,-500.0,0.00016972,2]
[346718666,1735237832892,-5321.82,0.00016972,2]
[346718667,1735237832902,-2157.06,0.00016972,2]
[346718668,1735237832911,-500.0,0.00016972,2]
[346718669,1735237832920,-500.0,0.00016972,2]
[346718670,1735237832931,-500.0,0.00016972,2]
[346718671,1735237832940,-989.85,0.00016972,2]
[346718672,1735237832949,-500.0,0.00016973,2]
[346718673,1735237832958,-500.0,0.00016973,2]
[346718674,1735237832968,-500.0,0.00016973,2]
[346718675,1735237832977,-500.0,0.00016973,2]
[346718676,1735237832987,-500.0,0.00016973,2]
[346718677,1735237832996,-215.29750327,0.00016973,2]
[346718678,1735237833006,-500.0,0.00016973,2]
[346718679,1735237833015,-500.0,0.00016973,2]
[346718680,1735237833023,-651.46177175,0.00016973,2]
[346718681,1735237833033,-500.0,0.00016973,2]
[346718682,1735237833043,-563.89181822,0.00016973,2]
[346718683,1735237833052,-500.0,0.00016973,2]
[346718684,1735237833062,-500.0,0.00016973,2]
[346718685,1735237833071,-500.0,0.00016973,2]
[346718686,1735237833081,-500.0,0.00016973,2]
[346718687,1735237833091,-500.0,0.00016973,2]
[346718688,1735237833100,-500.0,0.00016973,2]
[346718689,1735237833110,-500.0,0.00016973,2]
[346718690,1735237833119,-500.0,0.00016973,2]
[346718691,1735237833129,-500.0,0.00016973,2]
[346718692,1735237833138,-500.0,0.00016973,2]
[346718693,1735237833148,-648.55798008,0.00016973,2]
[346718694,1735237833157,-429.20774003,0.00016973,2]
[346718695,1735237833167,-500.0,0.00016973,2]
[346718696,1735237833177,-500.0,0.00016973,2]
[346718697,1735237833186,-500.0,0.00016973,2]
[346718698,1735237833195,-500.0,0.00016973,2]
[346718699,1735237833205,-500.0,0.00016973,2]
[346718700,1735237833214,-500.0,0.00016973,2]
[346718701,1735237833223,-233.72588224,0.00016973,2]
[346718702,1735237833237,-266.27411776,0.00016973,2]
[346718703,1735237833246,-500.0,0.00016973,2]
[346718704,1735237833255,-500.0,0.00016973,2]
[346718705,1735237833265,-500.0,0.00016973,2]
[346718706,1735237833274,-500.0,0.00016973,2]
[346718707,1735237833283,-308.74785981,0.00016973,2]
[346718708,1735237833293,-500.0,0.00016973,2]
[346718709,1735237833303,-500.0,0.00016973,2]
[346718710,1735237833313,-467.24720843,0.00016973,2]
[346718711,1735237833325,-32.75279157,0.00016973,2]
[346718712,1735237833335,-500.0,0.00016973,2]
[346718713,1735237833344,-500.0,0.00016973,2]
[346718714,1735237833353,-500.0,0.00016973,2]
[346718715,1735237833363,-500.0,0.00016973,2]
[346718716,1735237833372,-500.0,0.00016973,2]
[346718717,1735237833381,-492.93754476,0.00016973,2]
[346718733,1735237838395,-7.06245524,0.00016973,2]
[346718734,1735237838405,-342.93754476,0.00016973,2]
[346718735,1735237838418,-157.06245524,0.00016973,2]
[346718736,1735237838428,-242.76474339,0.00016973,2]
[346718737,1735237838446,-257.23525661,0.00016973,2]
[346718738,1735237838455,-500.0,0.00016974,2]
[346718739,1735237838464,-500.0,0.00016974,2]
[346718740,1735237838474,-500.0,0.00016974,2]
[346718741,1735237838484,-510.43598267,0.00016974,2]
[346718742,1735237838493,-500.0,0.00016974,2]
[346718743,1735237838502,-22.35552398,0.00016974,2]
[346718744,1735237838514,-477.64447602,0.00016974,2]
[346718745,1735237838523,-500.0,0.00016974,2]
[346718746,1735237838532,-500.0,0.00016974,2]
[346718747,1735237838541,-500.0,0.00016974,2]
[346718748,1735237838551,-500.0,0.00016974,2]
[346718749,1735237838560,-202.04903747,0.00016974,2]
[346718750,1735237838572,-522.21134252,0.00016974,2]
[346718751,1735237838582,-500.0,0.00016974,2]
[346718752,1735237838592,-500.0,0.00016974,2]
[346718753,1735237838601,-500.0,0.00016974,2]
[346718754,1735237838612,-500.0,0.00016974,2]
[346718755,1735237838622,-636.92,0.00016974,2]
[346718756,1735237838631,-500.0,0.00016974,2]
[346718757,1735237838641,-527.99743594,0.00016974,2]
[346718758,1735237838650,-500.0,0.00016974,2]
[346718759,1735237838660,-500.0,0.00016974,2]
[346718760,1735237838670,-500.0,0.00016974,2]
[346718761,1735237838679,-500.0,0.00016974,2]
[346718762,1735237838689,-500.0,0.00016974,2]
[346718763,1735237838698,-500.0,0.00016974,2]
[346718764,1735237838707,-500.0,0.00016974,2]
[346718765,1735237838717,-500.0,0.00016974,2]
[346718766,1735237838824,-500.0,0.00016974,2]
[346718767,1735237838834,-500.0,0.00016974,2]
[346718768,1735237838844,-176.57875643,0.00016974,2]
[346718769,1735237838853,-500.0,0.00016974,2]
[346718770,1735237838862,-500.0,0.00016974,2]
[346718771,1735237838872,-200.0,0.00016974,2]
[346718772,1735237838882,-500.0,0.00016974,2]
[346718773,1735237838892,-500.0,0.00016974,2]
[346718774,1735237838901,-500.0,0.00016974,2]
[346718775,1735237838910,-502.36035714,0.00016974,2]
[346718776,1735237838919,-500.0,0.00016974,2]
[346718777,1735237838930,-500.0,0.00016974,2]
[346718778,1735237838939,-266.14750288,0.00016974,2]
[346718779,1735237838949,-500.0,0.00016974,2]
[346718780,1735237838958,-500.0,0.00016974,2]
[346718781,1735237838968,-500.0,0.00016974,2]
[346718782,1735237838976,-500.0,0.00016974,2]
[346718783,1735237838986,-500.0,0.00016974,2]
[346718784,1735237838996,-508.4720901,0.00016974,2]
[346718785,1735237839005,-500.0,0.00016974,2]
[346718786,1735237839014,-504.79859755,0.00016974,2]
[346718787,1735237839023,-168.13358409,0.00016974,2]
[346718792,1735237840571,-331.86641591,0.00016974,2]
[346718793,1735237840581,-500.0,0.00016974,2]
[346718794,1735237840591,-500.0,0.00016974,2]
[346718795,1735237840601,-500.0,0.00016974,2]
[346718796,1735237840610,-522.59708065,0.00016974,2]
[346718797,1735237840620,-13.98702344,0.00016974,2]
[346718798,1735237840635,-535.77515254,0.00016974,2]
[346718799,1735237840647,-16.82782402,0.00016974,2]
[346718800,1735237840657,-500.0,0.00016974,2]
[346718801,1735237840666,-500.0,0.00016974,2]
[346718803,1735237840676,-330.43461338,0.00016974,2]
[346718939,1735237846349,-500.0,0.0001697,2]
[346718940,1735237846359,-646.6,0.00016972,2]
[346718942,1735237846369,-169.56538662,0.00016974,2]
[346718943,1735237846379,-303.19291738,0.00016974,2]
[346718944,1735237846444,-196.80708262,0.00016974,2]
[346718945,1735237846454,-500.0,0.00016974,2]
[346718946,1735237846464,-500.0,0.00016974,2]
[346718947,1735237846473,-500.0,0.00016974,2]
[346718948,1735237846484,-500.0,0.00016974,2]
[346718949,1735237846493,-500.0,0.00016974,2]
[346718950,1735237846503,-500.0,0.00016974,2]
[346718951,1735237846512,-500.0,0.00016974,2]
[346718952,1735237846522,-500.0,0.00016974,2]
[346718953,1735237846531,-500.0,0.00016974,2]
[346718954,1735237846541,-500.0,0.00016974,2]
[346718955,1735237846550,-500.0,0.00016974,2]
[346718956,1735237846559,-500.0,0.00016974,2]
[346718957,1735237846573,-500.0,0.00016974,2]
[346718958,1735237846583,-500.0,0.00016974,2]
[346718959,1735237846592,-500.0,0.00016974,2]
[346718960,1735237846601,-500.0,0.00016974,2]
[346718961,1735237846613,-561.82,0.00016974,2]
[346718962,1735237846622,-500.0,0.00016974,2]
[346718963,1735237846631,-500.0,0.00016974,2]
[346718964,1735237846641,-500.0,0.00016974,2]
[346718965,1735237846651,-326.1400669,0.00016974,2]
[346718966,1735237846661,-500.0,0.00016974,2]
[346718967,1735237846671,-500.0,0.00016974,2]
[346718968,1735237846680,-500.0,0.00016974,2]
[346718969,1735237846690,-200.48808268,0.00016974,2]
[346718970,1735237846704,-309.42699518,0.00016974,2]
[346718971,1735237846713,-469.9737018,0.00016974,2]
[346718972,1735237846724,-30.0262982,0.00016974,2]
[346718973,1735237846734,-500.0,0.00016974,2]
[346718974,1735237846743,-500.0,0.00016974,2]
[346718975,1735237846752,-500.0,0.00016974,2]
[346718976,1735237846761,-500.0,0.00016974,2]
[346718977,1735237846770,-500.0,0.00016974,2]
[346718978,1735237846780,-500.0,0.00016974,2]
[346718979,1735237846789,-317.43602896,0.00016974,2]
[346718980,1735237846798,-500.0,0.00016974,2]
[346718981,1735237846808,-500.0,0.00016974,2]
[346718982,1735237846818,-500.0,0.00016974,2]
[346718983,1735237846827,-500.0,0.00016974,2]
[346718984,1735237846836,-500.0,0.00016974,2]
[346718985,1735237846845,-500.0,0.00016974,2]
[346718986,1735237846854,-500.0,0.00016974,2]
[346718987,1735237846864,-500.0,0.00016974,2]
[346718988,1735237846873,-500.0,0.00016974,2]
[346718989,1735237846882,-500.0,0.00016974,2]
[346718990,1735237846891,-516.97499526,0.00016974,2]
[346718991,1735237846901,-500.0,0.00016974,2]
[346718992,1735237846910,-500.0,0.00016974,2]
[346718993,1735237846919,-500.0,0.00016974,2]
[346718994,1735237846928,-192.31936291,0.00016974,2]
[346718995,1735237846938,-500.0,0.00016974,2]
[346718996,1735237846947,-500.0,0.00016974,2]
[346718997,1735237846956,-500.0,0.00016974,2]
[346718998,1735237846965,-500.0,0.00016974,2]
[346718999,1735237846975,-17888.65,0.00016974,2]
[346719000,1735237846984,-500.0,0.00016974,2]
[346719001,1735237846993,-500.0,0.00016974,2]
[346719002,1735237847002,-533.50567128,0.00016974,2]
[346719003,1735237847012,-500.0,0.00016974,2]
[346719004,1735237847021,-526.73,0.00016974,2]
[346719005,1735237847030,-207.74282473,0.00016974,2]
[346719006,1735237847039,-500.0,0.00016974,2]
[346719007,1735237847049,-500.0,0.00016974,2]
[346719008,1735237847058,-500.0,0.00016974,2]
[346719009,1735237847067,-500.0,0.00016974,2]
[346719010,1735237847076,-500.0,0.00016974,2]
[346719011,1735237847085,-500.0,0.00016974,2]
[346719012,1735237847094,-500.0,0.00016974,2]
[346719013,1735237847103,-500.0,0.00016974,2]
[346719014,1735237847112,-500.0,0.00016974,2]
[346719015,1735237847121,-500.0,0.00016974,2]
[346719016,1735237847130,-500.0,0.00016974,2]
[346719017,1735237847139,-500.0,0.00016974,2]
[346719018,1735237847148,-500.0,0.00016975,2]
[346719019,1735237847157,-500.0,0.00016975,2]
[346719020,1735237847166,-500.0,0.00016975,2]
[346719021,1735237847175,-500.0,0.00016975,2]
[346719022,1735237847283,-500.0,0.00016975,2]
[346719023,1735237847292,-500.0,0.00016975,2]
[346719024,1735237847302,-500.0,0.00016975,2]
[346719025,1735237847311,-500.0,0.00016975,2]
[346719026,1735237847321,-500.0,0.00016975,2]
[346719027,1735237847330,-500.0,0.00016975,2]
[346719028,1735237847339,-500.0,0.00016975,2]
[346719029,1735237847348,-500.0,0.00016975,2]
[346719030,1735237847358,-500.0,0.00016975,2]
[346719031,1735237847367,-304.75884586,0.00016975,2]
[346719032,1735237847376,-500.0,0.00016975,2]
[346719033,1735237847385,-500.0,0.00016975,2]
[346719034,1735237847395,-500.0,0.00016975,2]
[346719035,1735237847405,-500.0,0.00016975,2]
[346719036,1735237847414,-500.0,0.00016975,2]
[346719037,1735237847424,-500.0,0.00016975,2]
[346719038,1735237847434,-500.0,0.00016975,2]
[346719039,1735237847443,-500.0,0.00016975,2]
[346719040,1735237847452,-500.0,0.00016975,2]
[346719041,1735237847461,-500.0,0.00016975,2]
[346719042,1735237847471,-500.0,0.00016975,2]
[346719043,1735237847480,-500.0,0.00016975,2]
[346719044,1735237847489,-500.0,0.00016975,2]
[346719045,1735237847499,-500.0,0.00016975,2]
[346719046,1735237847508,-500.0,0.00016975,2]
[346719047,1735237847518,-500.0,0.00016975,2]
[346719048,1735237847527,-500.0,0.00016975,2]
[346719049,1735237847537,-661.33,0.00016975,2]
[346719050,1735237847547,-500.0,0.00016975,2]
[346719051,1735237847556,-500.0,0.00016975,2]
[346719052,1735237847566,-500.0,0.00016975,2]
[346719053,1735237847577,-500.0,0.00016975,2]
[346719054,1735237847587,-500.0,0.00016975,2]
[346719055,1735237847596,-500.0,0.00016975,2]
[346719056,1735237847606,-500.0,0.00016975,2]
[346719057,1735237847620,-500.0,0.00016975,2]
[346719058,1735237847630,-500.0,0.00016975,2]
[346719059,1735237847640,-500.0,0.00016975,2]
[346719060,1735237847650,-500.0,0.00016975,2]
[346719061,1735237847659,-500.0,0.00016975,2]
[346719062,1735237847670,-500.0,0.00016975,2]
[346719063,1735237847680,-500.0,0.00016975,2]
[346719064,1735237847689,-500.0,0.00016975,2]
[346719065,1735237847699,-500.0,0.00016975,2]
[346719066,1735237847708,-500.0,0.00016975,2]
[346719067,1735237847717,-500.0,0.00016975,2]
[346719068,1735237847726,-500.0,0.00016975,2]
[346719069,1735237847736,-500.0,0.00016975,2]
[346719070,1735237847745,-500.0,0.00016975,2]
[346719071,1735237847754,-500.0,0.00016975,2]
[346719072,1735237847763,-500.0,0.00016975,2]
[346719073,1735237847772,-876.99,0.00016975,2]
[346719074,1735237847781,-500.0,0.00016975,2]
[346719075,1735237847790,-500.0,0.00016975,2]
[346719076,1735237847799,-500.0,0.00016975,2]
[346719077,1735237847809,-500.0,0.00016975,2]
[346719078,1735237847818,-500.0,0.00016975,2]
[346719079,1735237847827,-500.0,0.00016975,2]
[346719080,1735237847836,-500.0,0.00016975,2]
[346719081,1735237847846,-1375.05,0.00016975,2]
[346719082,1735237847855,-500.0,0.00016976,2]
[346719083,1735237847864,-785.11,0.00016976,2]
[346719084,1735237847873,-500.0,0.00016976,2]
[346719085,1735237847883,-500.0,0.00016976,2]
[346719086,1735237847892,-500.0,0.00016976,2]
[346719087,1735237847901,-500.0,0.00016976,2]
[346719088,1735237847910,-500.0,0.00016976,2]
[346719089,1735237847919,-539.28,0.00016976,2]
[346719090,1735237847928,-500.0,0.00016976,2]
[346719091,1735237847938,-569.97,0.00016976,2]
[346719092,1735237847947,-500.0,0.00016977,2]
[346719093,1735237847956,-500.0,0.00016977,2]
[346719094,1735237847965,-500.0,0.00016977,2]
[346719095,1735237847974,-500.0,0.00016977,2]
[346719096,1735237847983,-500.0,0.00016977,2]
[346719097,1735237847992,-500.0,0.00016977,2]
[346719098,1735237848001,-500.0,0.00016977,2]
[346719099,1735237848011,-500.0,0.00016977,2]
[346719100,1735237848019,-22.19516759,0.00016977,2]
[346719101,1735237848248,-477.80483241,0.00016977,2]
[346719102,1735237848257,-277.50167531,0.00016977,2]
[346719103,1735237900507,3466.04668537,8.98e-05,2]
[346719104,1735237900530,1382.33331463,8.98e-05,2]
[346719105,1735238072064,500.0,0.00020552,120]
[346719106,1735238826138,-164.61750266,0.00013833,2]
[346719107,1735238826161,-400.0,0.00013973,2]
[346719108,1735238826182,-941.8386625,0.00015928,2]
[346719109,1735238826205,-359.710261,0.00015971,2]
[346719110,1735238826328,-6198.61063275,0.00016489,2]
[346719111,1735238826354,-611.128,0.0001682,2]
[346719112,1735238826376,-446.87253346,0.00016874,2]
[346719113,1735238826402,-300.0,0.00016965,2]
[346719114,1735238826424,-300.0,0.00016966,2]
[346719115,1735238826447,-180.735,0.00016967,2]
[346719116,1735238826475,-404.86,0.00016967,2]
[346719117,1735238826497,-500.0,0.00016967,2]
[346719118,1735238826519,-500.0,0.00016967,2]
[346719119,1735238826542,-59.77465203,0.00016967,2]
[346719120,1735238826571,-440.22534797,0.00016967,2]
[346719121,1735238826592,-500.0,0.00016967,2]
[346719122,1735238826614,-501.11177485,0.00016967,2]
[346719123,1735238826637,-500.0,0.00016967,2]
[346719124,1735238826658,-500.0,0.00016967,2]
[346719125,1735238826680,-427.07996149,0.00016967,2]
[346719126,1735238850081,-211.74112771,0.00016867,2]
[346719127,1735238850103,-72.92003851,0.00016967,2]
[346719128,1735238850126,-500.0,0.00016967,2]
[346719129,1735238850149,-967.28,0.00016967,2]
[346719130,1735238850172,-240.01083744,0.00016967,2]
[346719132,1735238913672,-154.07157843,0.00016868,2]
[346719134,1735238913697,-300.0,0.00016966,2]
[346719135,1735238913722,-300.0,0.00016966,2]
[346719137,1735238913747,-237.66520969,0.00016967,2]
[346719154,1735239032747,-666.0,0.00016875,2]
[346719157,1735239032757,-926.97,0.00016966,2]
[346719159,1735239032768,-227.0,0.00016966,2]
[346719160,1735239032778,-300.0,0.00016966,2]
[346719161,1735239032788,-500.0,0.00016966,2]
[346719162,1735239032798,-240.51558844,0.00016966,2]
[346719163,1735239032811,-259.48441156,0.00016966,2]
[346719164,1735239032822,-1.47545734,0.00016967,2]
[346719165,1735239032844,-498.52454266,0.00016967,2]
[346719167,1735239032855,-500.0,0.00016967,2]
[346719168,1735239032865,-500.0,0.00016967,2]
[346719169,1735239032875,-500.0,0.00016967,2]
[346719171,1735239032885,-438.06,0.00016967,2]
[346719173,1735239032895,-500.0,0.00016967,2]
[346719175,1735239032904,-500.0,0.00016967,2]
[346719177,1735239032914,-500.0,0.00016967,2]
[346719179,1735239032923,-500.0,0.00016967,2]
[346719181,1735239032934,-5882.23,0.00016967,2]
[346719183,1735239032944,-500.0,0.00016967,2]
[346719185,1735239032957,-610.38,0.00016967,2]
[346719187,1735239032968,-500.0,0.00016967,2]
[346719189,1735239032981,-286.17384162,0.00016967,2]
[346719191,1735239032991,-500.0,0.00016967,2]
[346719193,1735239033000,-500.0,0.00016967,2]
[346719195,1735239033011,-2729.37,0.00016967,2]
[346719197,1735239033021,-500.0,0.00016967,2]
[346719199,1735239033031,-500.0,0.00016967,2]
[346719201,1735239033041,-500.0,0.00016967,2]
[346719204,1735239033054,-500.0,0.00016967,2]
[346719206,1735239033066,-500.0,0.00016967,2]
[346719208,1735239033076,-500.0,0.00016967,2]
[346719210,1735239033086,-500.0,0.00016967,2]
[346719212,1735239033096,-500.0,0.00016967,2]
[346719214,1735239033107,-500.0,0.00016967,2]
[346719216,1735239033116,-500.0,0.00016967,2]
[346719218,1735239033127,-500.0,0.00016967,2]
[346719220,1735239033137,-500.0,0.00016967,2]
[346719222,1735239033147,-500.0,0.00016967,2]
[346719224,1735239033156,-500.0,0.00016967,2]
[346719226,1735239033166,-500.0,0.00016967,2]
[346719227,1735239033176,-200.0,0.00016967,2]
[346719228,1735239033186,-500.0,0.00016967,2]
[346719229,1735239033198,-948.61,0.00016967,2]
[346719230,1735239033209,-500.0,0.00016967,2]
[346719231,1735239033219,-500.0,0.00016967,2]
[346719232,1735239033230,-500.0,0.00016967,2]
[346719233,1735239033240,-619.66,0.00016967,2]
[346719234,1735239033250,-317.02973022,0.00016967,2]
[346719235,1735239033260,-500.0,0.00016967,2]
[346719236,1735239033270,-500.0,0.00016967,2]
[346719237,1735239033280,-527.9,0.00016967,2]
[346719238,1735239033290,-500.0,0.00016967,2]
[346719239,1735239033300,-500.0,0.00016967,2]
[346719240,1735239033439,-500.0,0.00016967,2]
[346719241,1735239033449,-500.0,0.00016967,2]
[346719242,1735239033459,-500.0,0.00016967,2]
[346719243,1735239033469,-500.0,0.00016967,2]
[346719244,1735239033480,-399.79621749,0.00016967,2]
[346719245,1735239033490,-443.93791122,0.00016967,2]
[346719246,1735239033499,-492.13419334,0.00016967,2]
[346719247,1735239033509,-500.0,0.00016968,2]
[346719248,1735239033522,-500.0,0.00016968,2]
[346719249,1735239033532,-500.0,0.00016968,2]
[346719250,1735239033542,-500.0,0.00016968,2]
[346719251,1735239033551,-500.0,0.00016968,2]
[346719252,1735239033561,-500.0,0.00016968,2]
[346719253,1735239033571,-500.0,0.00016968,2]
[346719254,1735239033581,-500.0,0.00016968,2]
[346719255,1735239033590,-500.0,0.00016968,2]
[346719256,1735239033601,-500.0,0.00016968,2]
[346719257,1735239033611,-99.44319201,0.00016968,2]
[346719258,1735239033624,-400.55680799,0.00016968,2]
[346719259,1735239033633,-500.0,0.00016968,2]
[346719260,1735239033643,-185.35019201,0.00016968,2]
[346719261,1735239033655,-314.64980799,0.00016968,2]
[346719262,1735239033665,-423.5516132,0.00016968,2]
[346719271,1735239038483,-500.0,0.00016966,2]
[346719272,1735239038495,-500.0,0.00016967,2]
[346719273,1735239038505,-500.0,0.00016967,2]
[346719274,1735239038516,-500.0,0.00016967,2]
[346719275,1735239038527,-500.0,0.00016967,2]
[346719276,1735239038537,-76.4483868,0.00016968,2]
[346719277,1735239038548,-500.0,0.00016968,2]
[346719278,1735239038559,-500.0,0.00016968,2]
[346719279,1735239038568,-556.69,0.00016968,2]
[346719280,1735239038580,-266.21616902,0.00016968,2]
[346719282,1735239038589,-500.0,0.00016968,2]
[346719284,1735239038599,-500.0,0.00016968,2]
[346719286,1735239038609,-533.58933077,0.00016968,2]
[346719288,1735239038618,-168.0,0.00016968,2]
[346719289,1735239038628,-500.0,0.00016968,2]
[346719290,1735239038638,-500.0,0.00016968,2]
[346719291,1735239038647,-500.0,0.00016968,2]
[346719292,1735239038658,-500.0,0.00016968,2]
[346719293,1735239038667,-500.0,0.00016968,2]
[346719294,1735239038678,-520.20636044,0.00016968,2]
[346719295,1735239038688,-934.87,0.00016968,2]
[346719296,1735239038698,-1215.6,0.00016968,2]
[346719297,1735239038708,-500.0,0.00016968,2]
[346719298,1735239038718,-500.0,0.00016968,2]
[346719299,1735239038727,-500.0,0.00016968,2]
[346719300,1735239038737,-455.01218081,0.00016968,2]
[346719301,1735239038749,-44.98781919,0.00016968,2]
[346719302,1735239038759,-500.0,0.00016968,2]
[346719303,1735239038768,-500.0,0.00016968,2]
[346719304,1735239038778,-12.253461,0.00016968,2]
[346719305,1735239038790,-487.746539,0.00016968,2]
[346719306,1735239038800,-3913.26828772,0.00016968,2]